bitfinex-derivatives/quotes_SOLF0:USTF0_20250719
["timestamp","ask_amount","ask_price","bid_price","bid_amount"]
[1752885158080,3.27,177.32,177.29,3.0]
[1752885158281,3.27,177.32,177.3,2.56043875]
[1752885158486,3.27,177.32,177.31,5.56061782]
[1752885158985,8.9055,177.32,177.31,5.56061782]
[1752885159987,8.9055,177.32,177.31,2.56061782]
[1752885160381,5.6355,177.32,177.31,5.56061782]
[1752885160686,8.9055,177.32,177.31,5.56061782]
[1752885161180,8.9055,177.32,177.31,5.56080381]
[1752885161586,8.9055,177.32,177.31,2.56080381]
[1752885162484,8.9055,177.32,177.31,5.56080381]
[1752885162882,5.6355,177.32,177.31,5.56080381]
[1752885163283,8.9055,177.32,177.31,5.56080381]
[1752885163587,8.9055,177.32,177.31,2.56080381]
[1752885163886,8.9055,177.32,177.31,5.56080381]
[1752885165393,5.6355,177.32,177.31,5.56080381]
[1752885165686,8.9055,177.32,177.31,5.56080381]
[1752885166889,8.9055,177.32,177.31,5.56080289]
[1752885168793,5.6355,177.32,177.31,5.56080289]
[1752885169289,8.9055,177.32,177.31,5.56080289]
[1752885169886,8.9055,177.32,177.31,5.56060382]
[1752885170185,5.6355,177.32,177.31,5.56060382]
[1752885170391,8.9055,177.32,177.31,5.56060382]
[1752885170588,5.6355,177.32,177.31,10.28272818]
[1752885170796,5.6353,177.33,177.32,3.0]
[1752885170987,5.6353,177.33,177.32,10.28272818]
[1752885172691,5.6353,177.33,177.32,10.2808503]
[1752885175701,5.6355,177.32,177.31,0.03584074]
[1752885175893,8.8855,177.32,177.31,2.59337515]
[1752885176190,3.25,177.32,177.27,3.1]
[1752885176391,3.25,177.3,177.28,2.55775122]
[1752885176588,3.25,177.3,177.25,3.1]
[1752885176795,3.25,177.3,177.26,2.55793678]
[1752885176993,3.25,177.3,177.27,2.55793678]
[1752885177196,3.17994619,177.29,177.28,2.55793678]
[1752885177396,5.638,177.24,177.23,3.1]
[1752885177591,8.888,177.24,177.23,10.40119402]
[1752885181794,8.888,177.24,177.23,7.30119402]
[1752885182195,5.6393,177.2,177.19,3.1]
[1752885182397,8.8893,177.2,177.19,7.81747033]
[1752885182802,8.8893,177.2,177.19,4.71747033]
[1752885183698,5.6399,177.18,177.17,135.14772197]
[1752885183891,8.8899,177.18,177.17,139.8624049]
[1752885184495,5.6399,177.18,177.17,139.8624049]
[1752885185299,5.6399,177.18,177.17,7.81468293]
[1752885185701,8.8899,177.18,177.17,7.81468293]
[1752885186196,5.6399,177.18,177.17,7.81468293]
[1752885187401,8.8899,177.18,177.17,7.81468293]
[1752885187994,5.6399,177.18,177.17,7.81468293]
[1752885188192,5.6399,177.18,177.17,7.78508478]
[1752885188699,8.8899,177.18,177.17,7.78508478]
[1752885189302,8.8899,177.18,177.17,4.68508478]
[1752885189503,8.8909,177.15,177.14,106.88]
[1752885189803,8.8909,177.15,177.14,111.56313607]
[1752885190005,8.8909,177.15,177.14,114.66313607]
[1752885190196,8.8909,177.15,177.14,114.6628159]
[1752885191402,8.8909,177.15,177.14,109.98]
[1752885192404,8.8909,177.15,177.14,3.1]
[1752885192603,8.8909,177.15,177.14,7.77740381]
[1752885193305,8.8909,177.15,177.14,3.1]
[1752885194207,8.8909,177.15,177.14,5.60552721]
[1752885194606,5.6409,177.15,177.14,5.60552721]
[1752885195502,8.8909,177.15,177.14,2.50552721]
[1752885195905,8.8918,177.12,177.11,3.1]
[1752885196104,8.8918,177.12,177.11,5.60526321]
[1752885196701,3.28925946,177.16,177.11,2.50526321]
[1752885196906,3.25,177.15,177.12,2.50526321]
[1752885197206,3.25,177.14,177.13,5.60526321]
[1752885197406,8.8912,177.14,177.13,5.60526321]
[1752885198103,8.8912,177.14,177.13,3.1]
[1752885199304,5.6412,177.14,177.13,3.1]
[1752885199511,5.6412,177.14,177.13,5.6017517]
[1752885208024,0.03925946,177.16,177.13,5.6017517]
[1752885208226,0.03925946,177.16,177.12,3.21579451]
[1752885208227,0.03925946,177.16,177.15,3.28]
[1752885208426,0.03925946,177.16,177.15,5.7817517]
[1752885208818,3.15,177.2,177.15,5.7817517]
[1752885209018,3.15,177.2,177.17,3.17994619]
[1752885209218,3.15,177.2,177.18,3.28]
[1752885210024,5.6396,177.19,177.18,3.28]
[1752885210328,5.6396,177.19,177.18,5.76758022]
[1752885211031,3.15,177.27,177.19,3.28]
[1752885211224,3.15,177.27,177.19,6.45994619]
[1752885211527,3.15,177.27,177.21,3.17994619]
[1752885211829,3.15,177.27,177.23,3.28]
[1752885212327,8.788,177.24,177.23,3.28]
[1752885213728,5.6386,177.22,177.21,6.45994619]
[1752885213929,8.7886,177.22,177.21,3.28]
[1752885214126,8.7886,177.22,177.21,5.76945032]
[1752885218228,8.7886,177.22,177.21,10.4936238]
[1752885218727,8.7886,177.22,177.21,2.48945032]
[1752885219029,3.17994619,177.22,177.15,109.52]
[1752885219325,3.15,177.21,177.16,4.72535592]
[1752885219524,3.15,177.21,177.15,3.28]
[1752885219724,3.15,177.21,177.16,4.7298147]
[1752885219921,3.15,177.21,177.15,3.28]
[1752885220124,3.15,177.21,177.16,4.7298147]
[1752885220335,8.79,177.18,177.17,4.7298147]
[1752885221527,5.6406,177.16,177.15,3.28]
[1752885221731,8.7906,177.16,177.15,8.0170108]
[1752885230940,8.7906,177.16,177.15,10.45801209]
[1752885233340,5.6406,177.16,177.15,10.45801209]
[1752885233937,8.7906,177.16,177.15,10.45801209]
[1752885234542,5.6406,177.16,177.15,10.45801209]
[1752885236047,8.9306,177.16,177.15,10.45801209]
[1752885238851,8.9306,177.16,177.15,7.17801209]
[1752885240246,8.9306,177.16,177.15,4.7370108]
[1752885240442,8.9306,177.16,177.15,10.26687361]
[1752885241851,8.9306,177.16,177.15,10.26703014]
[1752885242352,5.6406,177.16,177.15,10.26703014]
[1752885243048,8.9306,177.16,177.15,10.26703014]
[1752885243947,8.9306,177.16,177.15,7.18703014]
[1752885244253,8.9306,177.16,177.15,2.45001934]
[1752885245354,3.29,177.12,177.09,3.08]
[1752885245546,3.29,177.12,177.1,7.1934997]
[1752885245743,3.29,177.12,177.11,7.1934997]
[1752885246053,8.9319,177.12,177.11,7.1934997]
[1752885246245,8.9319,177.12,177.11,2.45024258]
[1752885248648,5.6429,177.09,177.08,3.08]
[1752885248848,8.9329,177.09,177.08,5.52796189]
[1752885259762,5.6426,177.1,177.09,3.08]
[1752885260062,5.6426,177.1,177.09,5.52796189]
[1752885260760,8.9326,177.1,177.09,5.52796189]
[1752885263969,8.9326,177.1,177.09,2.44796189]
[1752885269066,10.9730998,177.1,177.09,2.44796189]
[1752885269267,10.9730998,177.1,177.09,5.51796189]
[1752885270368,7.6830998,177.1,177.09,5.51796189]
[1752885270569,3.29038478,177.13,177.1,3.07]
[1752885270770,3.29038478,177.13,177.11,5.51796189]
[1752885270968,3.29038478,177.13,177.12,2.44796189]
[1752885271280,3.25,177.12,177.06,3.07]
[1752885271573,8.8937,177.07,177.04,2.0404998]
[1752885271767,3.25,177.07,177.05,4.62062685]
[1752885271967,3.25,177.07,177.05,3.07]
[1752885272164,3.25,177.08,177.07,3.07]
[1752885272364,3.2882201,177.08,177.07,3.07]
[1752885273772,3.2882201,177.08,177.02,3.07]
[1752885274071,3.25,177.05,177.04,3.07]
[1752885274973,8.8941,177.05,177.04,3.07]
[1752885277464,3.25,177.05,177.0,3.07]
[1752885277663,3.25,177.05,177.01,4.62084989]
[1752885277875,3.25,177.05,177.03,3.07]
[1752885278172,3.29122039,177.05,177.03,3.07]
[1752885278972,8.8944,177.04,177.03,3.07]
[1752885280370,3.25,177.04,177.01,3.07]
[1752885280770,3.25,177.04,177.02,3.07]
[1752885280968,3.25,177.04,176.98,3.07]
[1752885282072,3.25,177.02,176.98,3.07]
[1752885282772,8.896,176.99,176.98,3.07]
[1752885282972,3.25,176.99,176.94,3.18944315]
[1752885283171,3.25,176.98,176.89,7.91908797]
[1752885283373,3.25,176.98,176.94,3.07]
[1752885283573,3.29119854,176.98,176.94,3.07]
[1752885283777,3.25,176.95,176.9,3.07]
[1752885283972,3.25,176.96,176.92,3.07]
[1752885284476,3.28557724,176.96,176.92,3.07]
[1752885285178,3.28557724,176.96,176.89,3.18944315]
[1752885285378,3.25,176.94,176.91,3.07]
[1752885285775,3.25,176.94,176.88,3.07]
[1752885286572,5.6486,176.91,176.9,3.07]
[1752885286776,8.8986,176.91,176.9,5.44993805]
[1752885287981,8.8986,176.91,176.9,5.41386206]
[1752885288480,8.8986,176.91,176.9,2.34300578]
[1752885288875,8.8986,176.91,176.88,3.07]
[1752885288876,5.6491,176.9,176.88,3.07]
[1752885289180,8.8991,176.9,176.89,5.41305724]
[1752885289377,8.8991,176.9,176.89,3.07]
[1752885291276,3.25,176.9,176.89,3.07]
[1752885291478,8.94119614,176.91,176.89,3.07]
[1752885291779,3.29259614,176.91,176.89,3.07]
[1752885292289,3.29259614,176.91,176.9,3.07]
[1752885293885,8.94119614,176.91,176.9,3.07]
[1752885299589,3.29259614,176.91,176.9,3.07]
[1752885300485,8.94119614,176.91,176.9,3.07]
[1752885300686,0.04259614,176.91,176.9,3.07]
[1752885300884,3.07,176.99,176.91,3.04]
[1752885302190,3.07,176.99,176.94,3.04]
[1752885302992,8.7175,176.95,176.94,3.04]
[1752885303388,3.07,176.95,176.93,3.08256421]
[1752885303789,5.6476,176.94,176.93,3.08256421]
[1752885303992,8.7176,176.94,176.93,5.4159697]
[1752885304792,3.07,176.94,176.93,5.4159697]
[1752885305594,8.7176,176.94,176.93,5.4159697]
[1752885307995,8.7176,176.94,176.93,2.3759697]
[1752885308590,8.7176,176.94,176.93,5.4159697]
[1752885308895,3.07,176.95,176.93,2.3759697]
[1752885309091,3.07,176.95,176.94,2.33340549]
[1752885309291,8.7173,176.95,176.94,2.33340549]
[1752885309696,8.7173,176.95,176.94,5.37340549]
[1752885312808,8.7173,176.95,176.94,3.04]
[1752885313104,5.6473,176.95,176.94,3.04]
[1752885313402,8.7173,176.95,176.94,3.04]
[1752885316308,8.7173,176.95,176.94,5.38365767]
[1752885316704,5.6473,176.95,176.94,5.38365767]
[1752885317205,5.6473,176.95,176.94,9.88652065]
[1752885318801,8.7173,176.95,176.94,9.88652065]
[1752885320107,8.7173,176.95,176.94,9.89117782]
[1752885321105,5.6473,176.95,176.94,9.92872125]
[1752885322207,5.6471,176.96,176.95,3.04]
[1752885322508,5.6471,176.96,176.95,9.92872125]
[1752885324009,8.7171,176.96,176.95,9.92872125]
[1752885324508,5.6471,176.96,176.95,9.92872125]
[1752885327211,5.6471,176.96,176.95,9.93584312]
[1752885330015,3.03,177.03,176.96,3.25]
[1752885330214,3.03,177.03,176.97,6.89584312]
[1752885330513,8.676,176.99,176.98,5.63832297]
[1752885330714,8.676,176.99,176.98,2.42780344]
[1752885332813,3.03,176.95,176.94,3.25]
[1752885333015,3.03,176.95,176.94,9.81199104]
[1752885333214,8.6773,176.95,176.94,9.81199104]
[1752885333614,3.03,176.95,176.94,9.81199104]
[1752885333813,5.6469,176.97,176.95,3.25]
[1752885334013,5.6469,176.97,176.96,7.76888029]
[1752885334014,8.6769,176.97,176.96,7.76888029]
[1752885339930,8.6769,176.97,176.96,4.51888029]
[1752885340126,3.03,176.95,176.92,3.25]
[1752885340428,3.03,176.95,176.93,7.78006308]
[1752885340629,3.03,176.95,176.94,4.53006308]
[1752885341030,5.6473,176.95,176.94,4.53006308]
[1752885341230,8.6773,176.95,176.94,4.53006308]
[1752885342632,8.6773,176.95,176.94,7.78006308]
[1752885344827,8.6773,176.95,176.94,4.53006308]
[1752885345229,8.6773,176.95,176.87,139.07881452]
[1752885345230,3.03,176.95,176.87,7.983329]
[1752885345424,3.03,176.93,176.88,4.53534518]
[1752885345731,3.03,176.95,176.9,3.25]
[1752885345933,0.03894691,176.92,176.91,4.53534518]
[1752885346132,3.06894691,176.92,176.91,4.53534518]
[1752885346433,3.06894691,176.92,176.91,7.78534518]
[1752885346735,8.71724691,176.92,176.91,7.78534518]
[1752885347333,8.71724691,176.92,176.91,4.53534518]
[1752885348732,8.71724691,176.92,176.91,7.78534518]
[1752885351935,8.71724691,176.92,176.91,4.53534518]
[1752885352542,8.71724691,176.92,176.91,7.78534518]
[1752885359543,8.71724691,176.92,176.84,6.31728726]
[1752885359544,7.74316639,176.92,176.72,14.5493]
[1752885359756,0.9,176.9,176.76,6.33230583]
[1752885359944,2.04602897,176.77,176.66,6.33273121]
[1752885360141,299.96,176.89,176.65,3.24]
[1752885360142,2.04602897,176.67,176.65,3.24]
[1752885360340,4.24513754,176.66,176.65,3.24]
[1752885360546,6.28582382,176.81,176.65,3.24]
[1752885360745,2.04602897,176.7,176.65,3.24]
[1752885360943,4.46867926,176.69,176.65,3.24]
[1752885361151,4.46867926,176.68,176.65,3.24]
[1752885361341,9.42406842,176.86,176.54,108.52]
[1752885361342,0.04134179,176.75,176.66,2.04602897]
[1752885361541,2.08737076,176.75,176.69,3.24]
[1752885361749,2.04602897,176.73,176.69,3.24]
[1752885361949,9.32634943,176.72,176.69,3.24]
[1752885362251,2.04602897,176.73,176.69,3.24]
[1752885362455,0.04307401,176.74,176.7,2.04844841]
[1752885362652,0.04307401,176.74,176.71,3.24]
[1752885362953,3.25,176.76,176.71,3.24]
[1752885363151,0.04068331,176.74,176.71,3.24]
[1752885363356,0.04068331,176.74,176.72,3.20006383]
[1752885363555,0.04068331,176.74,176.73,3.24]
[1752885363951,3.25,176.8,176.73,3.24]
[1752885364345,0.04206225,176.75,176.73,3.24]
[1752885364855,3.25,176.73,176.69,3.24]
[1752885365249,3.25,176.71,176.64,3.20006383]
[1752885365554,3.25,176.72,176.71,3.24]
[1752885365750,8.9048,176.72,176.71,3.24]
[1752885365944,3.25,176.71,176.65,3.24]
[1752885366149,3.20006383,176.68,176.65,3.24]
[1752885366355,0.03931119,176.73,176.61,3.24]
[1752885366356,3.25,176.63,176.61,3.24]
[1752885366846,379.94,176.79,176.61,3.24]
[1752885366847,3.20006383,176.7,176.61,3.24]
[1752885367054,3.23584213,176.64,176.57,3.24]
[1752885367248,0.0357783,176.64,176.57,3.24]
[1752885367649,0.0357783,176.64,176.59,3.24]
[1752885368151,3.25,176.65,176.53,3.24]
[1752885368351,108.46,176.74,176.44,108.48]
[1752885368352,3.28828875,176.63,176.44,108.48]
[1752885368649,3.25,176.61,176.54,3.24]
[1752885369255,0.03578767,176.59,176.54,3.24]
[1752885370151,3.28578767,176.59,176.54,3.24]
[1752885370554,8.94478767,176.59,176.54,3.24]
[1752885370754,3.28578767,176.59,176.54,3.24]
[1752885371847,3.28578767,176.59,176.55,3.24]
[1752885372455,3.28578767,176.59,176.55,5.6598]
[1752885372852,3.28578767,176.59,176.57,3.24]
[1752885373253,3.28578767,176.59,176.58,3.24]
[1752885373453,3.28578767,176.59,176.53,3.20006383]
[1752885373651,3.25,176.58,176.57,3.24]
[1752885374251,6.45006383,176.58,176.53,3.24]
[1752885374452,3.20006383,176.58,176.49,314.06450671]
[1752885374647,8.94478767,176.59,176.54,3.24]
[1752885374950,3.25,176.59,176.53,5.6604]
[1752885375150,8.9095,176.57,176.54,3.24]
[1752885375361,3.25,176.55,176.54,3.24]
[1752885376355,3.25,176.57,176.53,5.6605]
[1752885376556,0.04149966,176.58,176.54,3.24]
[1752885376757,3.25,176.58,176.54,3.24]
[1752885377056,0.03827652,176.58,176.57,3.24]
[1752885377456,3.28827652,176.58,176.57,8.8995]
[1752885377753,3.28827652,176.58,176.57,5.6595]
[1752885378153,0.03827652,176.58,176.56,5.6597]
[1752885378354,3.25,176.57,176.56,5.6597]
[1752885378558,3.25,176.57,176.56,3.24]
[1752885378760,0.03827652,176.58,176.56,3.24]
[1752885379059,3.25,176.57,176.53,3.24]
[1752885379258,0.03827652,176.58,176.55,3.24]
[1752885379461,3.25,176.56,176.51,3.24]
[1752885379656,3.25,176.57,176.51,3.24]
[1752885379859,3.25,176.55,176.52,3.24]
[1752885380057,3.25,176.55,176.49,3.24]
[1752885380455,3.25,176.55,176.45,6.44006383]
[1752885380657,3.25,176.55,176.47,3.20006383]
[1752885380965,0.04091779,176.54,176.48,5.6623]
[1752885381159,3.25,176.53,176.46,3.20006383]
[1752885381359,3.25,176.53,176.47,3.24]
[1752885382462,3.25,176.51,176.45,3.24]
[1752885382658,3.25,176.49,176.41,3.24]
[1752885383459,0.04129076,176.47,176.4,3.24]
[1752885383658,0.04129076,176.47,176.43,3.24]
[1752885384061,3.25,176.5,176.47,3.24]
[1752885384363,3.25,176.5,176.48,3.24]
[1752885384766,3.25,176.49,176.46,3.01]
[1752885385066,5.6617,176.5,176.47,3.01]
[1752885385263,5.6625,176.48,176.43,5.6637]
[1752885385467,3.25,176.46,176.44,3.01]
[1752885385767,3.25,176.46,176.45,3.01]
[1752885386366,0.03607198,176.47,176.45,3.01]
[1752885386561,0.03607198,176.47,176.4,5.13701766]
[1752885386763,0.03607198,176.47,176.43,5.13701766]
[1752885387065,3.25,176.52,176.47,5.6626]
[1752885387266,3.25,176.51,176.43,5.13701766]
[1752885387466,3.25,176.51,176.44,3.01]
[1752885387769,3.25,176.51,176.46,5.663]
[1752885387962,3.25,176.51,176.48,3.01]
[1752885388269,0.03611961,176.5,176.48,3.01]
[1752885388469,0.03611961,176.5,176.49,3.01]
[1752885388671,3.28611961,176.5,176.49,3.01]
[1752885389169,0.03611961,176.5,176.49,3.01]
[1752885389468,3.28611961,176.5,176.49,3.01]
[1752885389665,0.03611961,176.5,176.49,3.01]
[1752885390270,3.28611961,176.5,176.44,3.01]
[1752885390569,3.28611961,176.5,176.45,5.6631]
[1752885390769,0.03611961,176.5,176.45,5.6631]
[1752885390969,3.25,176.49,176.46,3.01]
[1752885391170,3.25,176.49,176.45,5.6631]
[1752885391467,3.25,176.49,176.48,3.01]
[1752885393466,3.25,176.49,176.43,5.13701766]
[1752885393467,3.25,176.48,176.46,3.01]
[1752885393770,3.25,176.48,176.47,3.01]
[1752885394667,3.28611961,176.5,176.48,3.01]
[1752885395065,3.25,176.49,176.48,3.01]
[1752885395270,5.6615,176.51,176.46,3.01]
[1752885395470,3.25,176.49,176.47,3.01]
[1752885395874,3.25,176.48,176.36,108.18]
[1752885396174,3.25,176.47,176.46,3.01]
[1752885396568,3.25,176.48,176.47,3.01]
[1752885396966,8.9124,176.48,176.42,5.664]
[1752885397164,3.25,176.47,176.43,3.01]
[1752885397475,8.9127,176.47,176.43,3.01]
[1752885397667,8.9127,176.47,176.44,3.01]
[1752885397863,8.9127,176.47,176.36,108.18]
[1752885397864,3.25,176.47,176.36,108.18]
[1752885398068,3.25,176.47,176.46,3.01]
[1752885398273,5.6621,176.49,176.46,3.01]
[1752885398470,3.25,176.48,176.47,3.01]
[1752885398672,0.03666674,176.48,176.47,3.01]
[1752885398976,96.21162658,176.57,176.47,3.01]
[1752885399174,3.25,176.55,176.47,3.01]
[1752885399471,3.25,176.59,176.49,3.01]
[1752885399773,3.25,176.59,176.52,3.01]
[1752885399975,3.25,176.59,176.54,3.01]
[1752885400575,3.25,176.59,176.55,3.01]
[1752885400775,8.38610641,176.59,176.55,0.03783608]
[1752885400974,3.25,176.58,176.55,0.03783608]
[1752885401174,5.6598,176.56,176.55,0.03783608]
[1752885401475,3.25,176.55,176.5,3.01]
[1752885402067,5.6602,176.55,176.49,3.01]
[1752885402266,3.25,176.53,176.49,3.01]
[1752885403878,0.03734742,176.54,176.5,3.01]
[1752885404183,3.28734742,176.54,176.5,3.01]
[1752885404378,3.28734742,176.54,176.5,8.6717]
[1752885404580,3.28734742,176.54,176.5,5.6617]
[1752885404878,3.28734742,176.54,176.52,3.01]
[1752885405679,3.28734742,176.54,176.53,3.01]
[1752885407278,0.03734742,176.54,176.53,3.01]
[1752885407885,0.03734742,176.54,176.53,8.6707]
[1752885408483,0.03734742,176.54,176.53,3.01]
[1752885410084,0.03734742,176.54,176.53,8.6707]
[1752885410586,0.03734742,176.54,176.53,3.01]
[1752885412389,3.28734742,176.54,176.53,3.01]
[1752885412686,3.28734742,176.54,176.53,8.6707]
[1752885412888,0.03734742,176.54,176.53,8.6707]
[1752885415677,0.03734742,176.54,176.53,3.01]
[1752885417583,0.03734742,176.54,176.53,8.6707]
[1752885417789,3.09,176.59,176.53,3.01]
[1752885418184,3.09,176.59,176.43,11.3274]
[1752885418185,5.6585,176.6,176.54,5.6601]
[1752885418485,3.09,176.59,176.54,3.31]
[1752885418790,3.09,176.59,176.57,3.31]
[1752885418986,3.09,176.59,176.58,3.31]
[1752885420084,3.09,176.58,176.57,3.31]
[1752885420280,3.09,176.58,176.53,5.6605]
[1752885420485,3.09,176.57,176.54,3.31]
[1752885420982,3.09,176.57,176.54,5.69799871]
[1752885421185,3.09,176.57,176.56,3.31]
[1752885421585,5.6587,176.6,176.54,5.69799871]
[1752885421785,3.09,176.58,176.57,3.31]
[1752885423796,3.09,176.62,176.58,3.31]
[1752885424093,3.09,176.6,176.59,3.31]
[1752885424294,3.09,176.6,176.57,3.31]
[1752885424592,3.09,176.62,176.58,0.03627399]
[1752885424792,3.09,176.62,176.61,3.31]
[1752885426100,3.09,176.63,176.59,3.31]
[1752885426499,3.09,176.63,176.6,3.31]
[1752885426696,3.09,176.62,176.61,3.31]
[1752885429303,5.6576,176.63,176.58,0.03627399]
[1752885429500,3.09,176.61,176.6,3.31]
[1752885433408,3.09,176.6,176.58,0.03627399]
[1752885433803,3.09,176.6,176.58,3.34627399]
[1752885434008,3.09,176.59,176.58,3.34627399]
[1752885434610,3.09,176.6,176.58,0.03627399]
[1752885434908,3.09,176.6,176.59,3.31]
[1752885435205,3.09,176.62,176.59,3.31]
[1752885435606,3.09,176.64,176.59,3.31]
[1752885435809,3.09,176.66,176.59,3.31]
[1752885436110,8.7466,176.66,176.6,5.6584]
[1752885436309,3.09,176.65,176.61,3.31]
[1752885437110,3.09,176.65,176.61,3.34676612]
[1752885437605,8.7469,176.65,176.61,3.34676612]
[1752885438711,3.09,176.64,176.61,3.34676612]
[1752885439115,3.09,176.66,176.61,3.34676612]
[1752885439712,3.09,176.65,176.61,3.34676612]
[1752885440717,3.09,176.65,176.62,3.31]
[1752885441414,3.09,176.66,176.62,3.31]
[1752885442513,11.95335193,176.67,176.62,8.9678]
[1752885442710,3.09,176.66,176.63,3.31]
[1752885445413,3.04,176.65,176.63,3.31]
[1752885445809,3.04,176.66,176.63,3.31]
[1752885449516,118.24295193,176.68,176.63,3.31]
[1752885449814,3.04,176.67,176.63,3.31]
[1752885450414,3.04,176.66,176.63,3.31]
[1752885450817,3.04,176.67,176.63,3.31]
[1752885451118,8.6964,176.67,176.63,3.31]
[1752885451517,3.04,176.66,176.63,3.31]
[1752885452018,8.6966,176.66,176.63,3.31]
[1752885452508,3.04,176.65,176.63,3.31]
[1752885452712,3.04,176.66,176.63,3.31]
[1752885454418,5.6559,176.69,176.64,5.6572]
[1752885454622,3.04,176.69,176.65,3.25]
[1752885454819,3.04,176.71,176.65,3.25]
[1752885455019,3.04,176.71,176.63,3.20685193]
[1752885455020,3.04,176.71,176.67,3.25]
[1752885455217,386.71517422,176.77,176.67,3.25]
[1752885455218,3.04,176.73,176.67,6.45685193]
[1752885455419,109.36,176.74,176.68,3.25]
[1752885455619,3.04,176.74,176.69,3.20685193]
[1752885455925,109.36,176.76,176.7,3.25]
[1752885456419,3.04,176.78,176.72,3.25]
[1752885456817,3.04,176.78,176.72,8.9046]
[1752885457119,3.04,176.78,176.72,3.25]
[1752885457320,5.6532,176.77,176.72,3.25]
[1752885457522,8.6932,176.77,176.72,3.25]
[1752885458930,5.6534,176.76,176.72,3.25]
[1752885459120,8.6934,176.76,176.72,3.25]
[1752885459522,3.04,176.76,176.72,3.25]
[1752885459722,8.6931,176.77,176.72,3.25]
[1752885460226,8.6931,176.77,176.73,3.25]
[1752885461525,3.04,176.79,176.73,3.25]
[1752885461724,3.04,176.79,176.73,6.45685193]
[1752885461926,8.6925,176.79,176.74,3.25]
[1752885462618,3.04,176.77,176.66,3.25]
[1752885462824,3.04,176.77,176.71,3.25]
[1752885463424,3.04,176.76,176.72,3.25]
[1752885464331,8.6932,176.77,176.73,3.25]
[1752885464530,3.04,176.77,176.73,3.25]
[1752885464824,3.04,176.79,176.73,3.25]
[1752885465621,5.653,176.78,176.74,3.25]
[1752885465830,3.04,176.8,176.74,3.25]
[1752885466332,3.04,176.77,176.74,3.25]
[1752885466528,5.6529,176.78,176.74,3.25]
[1752885466830,8.6929,176.78,176.74,3.25]
[1752885468431,5.6531,176.77,176.74,3.25]
[1752885468633,8.6931,176.77,176.74,3.25]
[1752885468934,3.04,176.77,176.74,3.25]
[1752885469133,3.04,176.8,176.74,3.25]
[1752885469334,8.693,176.78,176.74,3.25]
[1752885469529,3.04,176.78,176.75,3.25]
[1752885469924,3.20685193,176.81,176.75,3.28590522]
[1752885470132,3.04,176.79,176.75,3.28590522]
[1752885471230,8.6925,176.79,176.75,3.28590522]
[1752885472828,8.6925,176.79,176.76,3.25]
[1752885473834,3.04,176.79,176.76,3.25]
[1752885474133,8.6922,176.8,176.77,3.25]
[1752885474332,3.04,176.8,176.77,3.25]
[1752885474534,3.04,176.8,176.77,8.9029]
[1752885474726,3.04,176.8,176.78,3.28]
[1752885474925,5.652,176.81,176.78,3.28]
[1752885475134,5.6521,176.8,176.78,3.28]
[1752885475531,8.8821,176.8,176.78,3.28]
[1752885475735,3.23,176.8,176.78,3.28]
[1752885476835,8.8819,176.81,176.78,3.28]
[1752885478133,3.23,176.8,176.78,3.28]
[1752885478636,3.23,176.81,176.78,3.28]